﻿Department family,Entity,Date,Expense type,Expense area,Supplier,Transaction number,Amount,VAT registration number
Dept of Health,MHRA,04/04/2018,Subcontracted Laboratory Services,Virology,Public Health England,6326939,"66,484.80",888849628
Dept of Health,MHRA,06/04/2018,Lab Equipment Repairs and Maintenance,Operations,Illumina Cambridge Ltd,7020405813,"28,080.00",888849726
Dept of Health,MHRA,06/04/2018,Contracted Out Services Miscellaneous,Transformation,PA Consulting Services Ltd,10122828,"136,838.40",238535057
Dept of Health,MHRA,11/04/2018,Assets Under Construction - Plant & Equipment,Operations,Commercial Services UK Ltd,INV-0728,"129,181.39",130597616
Dept of Health,MHRA,11/04/2018,Security,Operations,ISS Facility Services Limited,SLINVS/44006180,"50,767.98",945751887
Dept of Health,MHRA,11/04/2018,Library & Periodical Subscriptions,Communications,Elsevier B.V,M362180,"40,129.00",
Dept of Health,MHRA,11/04/2018,SIAM - Portfolio Services,Transformation,FDM Group ltd,254758-FM,"57,483.00",583540529
Dept of Health,MHRA,13/04/2018,Application Services and Maintenance,Transformation,Accenture (UK) Limited,3003389283,"265,145.72",788629066
Dept of Health,MHRA,13/04/2018,Application Services and Maintenance,Transformation,Appian Corporation,SINV-000003545,"338,107.20",
Dept of Health,MHRA,13/04/2018,Application Services and Maintenance,Transformation,Redrock Consulting Ltd,7652,"59,235.92",862247715
Dept of Health,MHRA,13/04/2018,Infrastructure Services and Maintenance,Transformation,Redrock Consulting Ltd,7658,"78,160.54",862247715
Dept of Health,MHRA,13/04/2018,Infrastructure Services and Maintenance,Transformation,Sungard Availability Services (UK) Limited,18001636A,"300,000.00",823829709
Dept of Health,MHRA,16/04/2018,Lab Equipment Repairs and Maintenance,Operations,JEOL (UK) Ltd,SA 23273,"124,665.86",226825653
Dept of Health,MHRA,16/04/2018,MHRA-administered Seminar Costs,Communications,Glasgows Ltd,15661,"241,568.66",448190633
Dept of Health,MHRA,16/04/2018,Travel and Subsistence,Finance & Procurement,Clarity Travel Management,MHRA0024,"213,179.10",197694731
Dept of Health,MHRA,16/04/2018,Infrastructure Services and Maintenance,Transformation,NTT Data UK Ltd,4011388,"138,788.60",159334590
Dept of Health,MHRA,16/04/2018,Contracted Out Services Miscellaneous,Transformation,PA Consulting Services Ltd,10123110,"274,068.00",238535057
Dept of Health,MHRA,16/04/2018,Infrastructure Services and Maintenance,Transformation,Redrock Consulting Ltd,7650,"42,017.88",862247715
Dept of Health,MHRA,16/04/2018,Application Services and Maintenance,Transformation,Redrock Consulting Ltd,7654,"207,438.34",862247715
Dept of Health,MHRA,18/04/2018,Application Services and Maintenance,Transformation,Accenture (UK) Limited,3003390177,"33,524.40",788629066
Dept of Health,MHRA,18/04/2018,Software & Licences,Transformation,Phoenix Software,OP/I818005,"30,892.37",755349015
Dept of Health,MHRA,20/04/2018,Relocation,Finance & Procurement,Redrock Consulting Ltd,7642,"72,239.18",862247715
Dept of Health,MHRA,20/04/2018,Application Services and Maintenance,Transformation,Accenture (UK) Limited,3003390454,"192,814.80",788629066
Dept of Health,MHRA,20/04/2018,Infrastructure Services and Maintenance,Transformation,Redrock Consulting Ltd,7651,"53,758.32",862247715
Dept of Health,MHRA,20/04/2018,SIAM - Enterprise Architecture,Transformation,Redrock Consulting Ltd,7655,"32,426.02",862247715
Dept of Health,MHRA,20/04/2018,"Service, Integration & Management (SIAM)",Transformation,Redrock Consulting Ltd,7661,"49,982.86",862247715
Dept of Health,MHRA,24/04/2018,Payroll Administration Services,Human Resources,Cabinet Office,3717299,"35,971.20",888801080
Dept of Health,MHRA,24/04/2018,Software & Licences,Transformation,Health Products Regulatory Authority,1400004540,"30,620.80",
Dept of Health,MHRA,25/04/2018,Gas,Operations,Corona Energy Retail 4 Ltd,12959973,"47,388.25",577704800
Dept of Health,MHRA,25/04/2018,Electricity,Operations,EDF Energy,4047450,"64,702.83",523041202
Dept of Health,MHRA,25/04/2018,Application Services and Maintenance,Transformation,MuleSoft Inc,INV-10898,"25,996.59",
Dept of Health,MHRA,25/04/2018,SIAM - Portfolio Services,Transformation,Redrock Consulting Ltd,7659,"26,842.82",862247715
Dept of Health,MHRA,27/04/2018,Application Services and Maintenance,Transformation,Accenture (UK) Limited,3003390362,"99,961.33",788629066
Dept of Health,MHRA,27/04/2018,Software & Licences,Transformation,Melissa Data Ltd,3745069,"31,185.00",216298989
